{"text_format":"3","workbook":"xlsx","n_sheets":2,"sheets":["Horário dos Funcionários","Configuração"],"not_rendered":{"defined_names":21},"read":"whole","date_system":"1900"}

{"sheet":"Horário dos Funcionários","index":0,"n_rows":296,"n_cols":21,"rows_kept":296,"merged":[[6,1,6,9],[66,1,66,9],[126,1,126,9],[186,1,186,9],[246,1,246,9]]}
["Horário dos Turnos dos Funcionários"]
[]
[null,"TOTAL:",null,{"$f":"SUM(4:4)","v":{"v":56,"d":"56.00"}}]
[null,"HORAS:",null,{"$f":"EmployeeDayHoursTotal","v":8},{"$f":"EmployeeDayHoursTotal","v":8},8,8,8,8,8,{"v":0,"d":"0.00"},{"v":0,"d":"0.00"},{"v":0,"d":"0.00"},{"v":0,"d":"0.00"},{"v":0,"d":"0.00"},{"v":0,"d":"0.00"},{"v":0,"d":"0.00"},{"v":0,"d":"0.00"},{"v":0,"d":"0.00"},{"v":0,"d":"0.00"},{"v":0,"d":"0.00"}]
[null,"FUNCIONÁRIO:",null,"Andrade, D","Freitas, V","Raposo, R","Freitas, V","Cunha, G","Mena, J","Neves, P"]
[]
[null,"2012-07-16T09:00:00"]
[null,{"$f":"B7","v":41106.375},{"$nulls":5},"Férias"]
[null,{"$f":"PeríodosDisplay","v":":15"},null,"Balcão",{"$nulls":3},"Férias"]
[null,":30",null,"Balcão",{"$nulls":3},"Férias"]
[null,":45",null,"Balcão","Supervisor",null,"Atendimento ao Cliente","Férias"]
[null,"10:00",null,"Balcão","Supervisor",null,"Atendimento ao Cliente","Férias"]
[null,":15",null,"Balcão","Supervisor",null,"Atendimento ao Cliente","Férias"]
[null,":30",null,"Balcão","Supervisor",null,"Atendimento ao Cliente","Férias","Contabilidade"]
[null,":45",null,"Balcão","Supervisor",null,"Atendimento ao Cliente","Férias","Contabilidade","Faxineiro"]
[null,"11:00",null,"Balcão","Supervisor",null,"Atendimento ao Cliente","Férias","Contabilidade","Faxineiro"]
[null,":15",null,"Balcão","Supervisor","Guia","Atendimento ao Cliente","Férias","Contabilidade","Faxineiro"]
[null,":30",null,"Balcão","Intervalo","Guia","Atendimento ao Cliente","Férias","Contabilidade","Faxineiro"]
[null,":45",null,"Almoço","Supervisor","Guia","Atendimento ao Cliente","Férias","Contabilidade","Faxineiro"]
[null,"12:00",null,"Almoço","Supervisor","Guia","Atendimento ao Cliente","Férias","Contabilidade","Faxineiro"]
[null,":15",null,"Balcão","Supervisor","Guia","Atendimento ao Cliente","Férias","Intervalo","Faxineiro"]
[null,":30",null,"Balcão","Supervisor","Intervalo","Atendimento ao Cliente","Férias","Telefones","Intervalo"]
[null,":45",null,"Balcão","Supervisor","Guia","Atendimento ao Cliente","Férias","Telefones","Faxineiro"]
[null,"13:00",null,"Balcão","Supervisor","Guia","Atendimento ao Cliente","Férias","Telefones","Faxineiro"]
[null,":15",null,"Balcão","Supervisor","Guia","Almoço","Férias","Telefones","Faxineiro"]
[null,":30",null,null,"Supervisor","Guia","Almoço","Férias","Telefones","Faxineiro"]
[null,":45",null,null,"Supervisor","Guia","Almoço","Férias","Almoço","Faxineiro"]
[null,"14:00",null,"Caixa","Almoço","Guia","Almoço","Férias","Almoço","Faxineiro"]
[null,":15",null,"Caixa","Almoço","Guia","Atendimento ao Cliente","Férias","Telefones","Faxineiro"]
[null,":30",null,"Caixa","Almoço","Almoço","Atendimento ao Cliente","Férias","Telefones","Almoço"]
[null,":45",null,"Caixa","Almoço","Almoço","Atendimento ao Cliente","Férias","Telefones","Almoço"]
[null,"15:00",null,"Caixa","Segurança","Almoço","Atendimento ao Cliente","Férias","Telefones","Almoço"]
[null,":15",null,"Caixa","Segurança","Almoço","Atendimento ao Cliente","Férias","Telefones","Almoço"]
[null,":30",null,"Caixa","Segurança","Guia","Atendimento ao Cliente","Férias","Telefones","Fechamento"]
[null,":45",null,"Caixa","Segurança","Guia","Atendimento ao Cliente","Férias","Telefones","Fechamento"]
[null,"16:00",null,"Caixa","Segurança","Guia","Atendimento ao Cliente","Férias","Intervalo","Fechamento"]
[null,":15",null,"Intervalo","Segurança","Guia","Intervalo","Férias","Telefones","Fechamento"]
[null,":30",null,"Caixa","Segurança","Guia","Atendimento ao Cliente","Férias","Telefones","Fechamento"]
[null,":45",null,"Caixa","Segurança","Guia","Atendimento ao Cliente","Férias","Telefones","Fechamento"]
[null,"17:00",null,"Caixa","Segurança","Guia","Atendimento ao Cliente",null,"Telefones","Fechamento"]
[null,":15",null,"Caixa","Segurança","Guia","Atendimento ao Cliente",null,"Telefones","Fechamento"]
[null,":30",null,"Caixa","Segurança","Guia","Atendimento ao Cliente",null,"Telefones","Fechamento"]
[null,":45",null,"Caixa","Segurança","Guia","Atendimento ao Cliente",null,"Telefones","Fechamento"]
[null,"18:00",null,"Caixa","Segurança","Guia","Atendimento ao Cliente",null,"Telefones","Fechamento"]
[null,":15",null,"Caixa","Segurança","Guia","Atendimento ao Cliente",null,"Telefones","Fechamento"]
[null,":30",null,null,"Segurança","Guia","Atendimento ao Cliente",null,"Telefones","Fechamento"]
[null,":45",null,null,"Segurança","Intervalo","Atendimento ao Cliente",null,"Telefones","Intervalo"]
[null,"19:00",{"$nulls":3},"Guia",null,null,"Telefones","Fechamento"]
[null,":15",{"$nulls":3},"Guia",null,null,"Telefones","Fechamento"]
[null,":30",{"$nulls":3},"Guia",{"$nulls":3},"Fechamento"]
[null,":45",{"$nulls":3},"Guia",{"$nulls":3},"Fechamento"]
[null,"20:00",{"$nulls":3},"Guia",{"$nulls":3},"Fechamento"]
[null,":15",{"$nulls":3},"Guia"]
[null,":30",{"$nulls":3},"Guia"]
[null,":45"]
[null,"21:00"]
[]
[]
[]
[]
["Horário dos Funcionários"]
[]
[null,"TOTAL:",null,{"$f":"SUM(64:64)","v":{"v":56,"d":"56.00"}}]
[null,"HORAS:",null,{"$f":"EmployeeDayHoursTotal","v":8},8,8,8,8,8,8,{"v":0,"d":"0.00"},{"v":0,"d":"0.00"},{"v":0,"d":"0.00"},{"v":0,"d":"0.00"},{"v":0,"d":"0.00"},{"v":0,"d":"0.00"},{"v":0,"d":"0.00"},{"v":0,"d":"0.00"},{"v":0,"d":"0.00"},{"v":0,"d":"0.00"},{"v":0,"d":"0.00"}]
[null,"FUNCIONÁRIO:",null,"Andrade, D","Freitas, V","Raposo, R","Lacerda, C","Cunha, G","Mena, J","Neves, P"]
[]
[null,{"$f":"B7+1","v":"2012-07-17T09:00:00"}]
[null,{"$f":"B67","v":41107.375},{"$nulls":5},"Férias"]
[null,{"$f":"PeríodosDisplay","v":":15"},null,"Balcão",{"$nulls":3},"Férias"]
[null,":30",null,"Balcão",{"$nulls":3},"Férias"]
[null,":45",null,"Balcão","Supervisor",null,"Atendimento ao Cliente","Férias"]
[null,"1:00",null,"Balcão","Supervisor",null,"Atendimento ao Cliente","Férias"]
[null,":15",null,"Balcão","Supervisor",null,"Atendimento ao Cliente","Férias"]
[null,":30",null,"Balcão","Supervisor",null,"Atendimento ao Cliente","Férias","Contabilidade"]
[null,":45",null,"Balcão","Supervisor",null,"Atendimento ao Cliente","Férias","Contabilidade","Faxineiro"]
[null,"2:00",null,"Balcão","Supervisor",null,"Atendimento ao Cliente","Férias","Contabilidade","Faxineiro"]
[null,":15",null,"Balcão","Supervisor","Guia","Atendimento ao Cliente","Férias","Contabilidade","Faxineiro"]
[null,":30",null,"Balcão","Intervalo","Guia","Atendimento ao Cliente","Férias","Contabilidade","Faxineiro"]
[null,":45",null,"Almoço","Supervisor","Guia","Atendimento ao Cliente","Férias","Contabilidade","Faxineiro"]
[null,"3:00",null,"Almoço","Supervisor","Guia","Atendimento ao Cliente","Férias","Contabilidade","Faxineiro"]
[null,":15",null,"Balcão","Supervisor","Guia","Atendimento ao Cliente","Férias","Intervalo","Faxineiro"]
[null,":30",null,"Balcão","Supervisor","Intervalo","Atendimento ao Cliente","Férias","Telefones","Intervalo"]
[null,":45",null,"Balcão","Supervisor","Guia","Atendimento ao Cliente","Férias","Telefones","Faxineiro"]
[null,"4:00",null,"Balcão","Supervisor","Guia","Atendimento ao Cliente","Férias","Telefones","Faxineiro"]
[null,":15",null,"Balcão","Supervisor","Guia","Almoço","Férias","Telefones","Faxineiro"]
[null,":30",null,null,"Supervisor","Guia","Almoço","Férias","Telefones","Faxineiro"]
[null,":45",null,null,"Supervisor","Guia","Almoço","Férias","Almoço","Faxineiro"]
[null,"5:00",null,"Caixa","Almoço","Guia","Almoço","Férias","Almoço","Faxineiro"]
[null,":15",null,"Caixa","Almoço","Guia","Atendimento ao Cliente","Férias","Telefones","Faxineiro"]
[null,":30",null,"Caixa","Almoço","Almoço","Atendimento ao Cliente","Férias","Telefones","Almoço"]
[null,":45",null,"Caixa","Almoço","Almoço","Atendimento ao Cliente","Férias","Telefones","Almoço"]
[null,"6:00",null,"Caixa","Segurança","Almoço","Atendimento ao Cliente","Férias","Telefones","Almoço"]
[null,":15",null,"Caixa","Segurança","Almoço","Atendimento ao Cliente","Férias","Telefones","Almoço"]
[null,":30",null,"Caixa","Segurança","Guia","Atendimento ao Cliente","Férias","Telefones","Fechamento"]
[null,":45",null,"Caixa","Segurança","Guia","Atendimento ao Cliente","Férias","Telefones","Fechamento"]
[null,"7:00",null,"Caixa","Segurança","Guia","Atendimento ao Cliente","Férias","Intervalo","Fechamento"]
[null,":15",null,"Intervalo","Segurança","Guia","Intervalo","Férias","Telefones","Fechamento"]
[null,":30",null,"Caixa","Segurança","Guia","Atendimento ao Cliente","Férias","Telefones","Fechamento"]
[null,":45",null,"Caixa","Segurança","Guia","Atendimento ao Cliente","Férias","Telefones","Fechamento"]
[null,"8:00",null,"Caixa","Segurança","Guia","Atendimento ao Cliente",null,"Telefones","Fechamento"]
[null,":15",null,"Caixa","Segurança","Guia","Atendimento ao Cliente",null,"Telefones","Fechamento"]
[null,":30",null,"Caixa","Segurança","Guia","Atendimento ao Cliente",null,"Telefones","Fechamento"]
[null,":45",null,"Caixa","Segurança","Guia","Atendimento ao Cliente",null,"Telefones","Fechamento"]
[null,"9:00",null,"Caixa","Segurança","Guia","Atendimento ao Cliente",null,"Telefones","Fechamento"]
[null,":15",null,"Caixa","Segurança","Guia","Atendimento ao Cliente",null,"Telefones","Fechamento"]
[null,":30",null,null,"Segurança","Guia","Atendimento ao Cliente",null,"Telefones","Fechamento"]
[null,":45",null,null,"Segurança","Intervalo","Atendimento ao Cliente",null,"Telefones","Intervalo"]
[null,"10:00",{"$nulls":3},"Guia",null,null,"Telefones","Fechamento"]
[null,":15",{"$nulls":3},"Guia",null,null,"Telefones","Fechamento"]
[null,":30",{"$nulls":3},"Guia",{"$nulls":3},"Fechamento"]
[null,":45",{"$nulls":3},"Guia",{"$nulls":3},"Fechamento"]
[null,"11:00",{"$nulls":3},"Guia",{"$nulls":3},"Fechamento"]
[null,":15",{"$nulls":3},"Guia"]
[null,":30",{"$nulls":3},"Guia"]
[null,":45"]
[null,"12:00"]
[]
[]
[]
[]
["Horário dos Funcionários"]
[]
[null,"TOTAL:",null,{"$f":"SUM(124:124)","v":{"v":56,"d":"56.00"}}]
[null,"HORAS:",null,{"$f":"EmployeeDayHoursTotal","v":8},8,8,8,8,8,8,{"v":0,"d":"0.00"},{"v":0,"d":"0.00"},{"v":0,"d":"0.00"},{"v":0,"d":"0.00"},{"v":0,"d":"0.00"},{"v":0,"d":"0.00"},{"v":0,"d":"0.00"},{"v":0,"d":"0.00"},{"v":0,"d":"0.00"},{"v":0,"d":"0.00"},{"v":0,"d":"0.00"}]
[null,"FUNCIONÁRIO:",null,"Andrade, D","Freitas, V","Raposo, R","Lacerda, C","Cunha, G","Mena, J","Neves, P"]
[]
[null,{"$f":"B67+1","v":"2012-07-18T09:00:00"}]
[null,{"$f":"B127","v":41108.375},{"$nulls":5},"Férias"]
[null,{"$f":"PeríodosDisplay","v":":15"},null,"Balcão",{"$nulls":3},"Férias"]
[null,":30",null,"Balcão",{"$nulls":3},"Férias"]
[null,":45",null,"Balcão","Supervisor",null,"Atendimento ao Cliente","Férias"]
[null,"16:00",null,"Balcão","Supervisor",null,"Atendimento ao Cliente","Férias"]
[null,":15",null,"Balcão","Supervisor",null,"Atendimento ao Cliente","Férias"]
[null,":30",null,"Balcão","Supervisor",null,"Atendimento ao Cliente","Férias","Contabilidade"]
[null,":45",null,"Balcão","Supervisor",null,"Atendimento ao Cliente","Férias","Contabilidade","Faxineiro"]
[null,"17:00",null,"Balcão","Supervisor",null,"Atendimento ao Cliente","Férias","Contabilidade","Faxineiro"]
[null,":15",null,"Balcão","Supervisor","Guia","Atendimento ao Cliente","Férias","Contabilidade","Faxineiro"]
[null,":30",null,"Balcão","Intervalo","Guia","Atendimento ao Cliente","Férias","Contabilidade","Faxineiro"]
[null,":45",null,"Almoço","Supervisor","Guia","Atendimento ao Cliente","Férias","Contabilidade","Faxineiro"]
[null,"18:00",null,"Almoço","Supervisor","Guia","Atendimento ao Cliente","Férias","Contabilidade","Faxineiro"]
[null,":15",null,"Balcão","Supervisor","Guia","Atendimento ao Cliente","Férias","Intervalo","Faxineiro"]
[null,":30",null,"Balcão","Supervisor","Intervalo","Atendimento ao Cliente","Férias","Telefones","Intervalo"]
[null,":45",null,"Balcão","Supervisor","Guia","Atendimento ao Cliente","Férias","Telefones","Faxineiro"]
[null,"19:00",null,"Balcão","Supervisor","Guia","Atendimento ao Cliente","Férias","Telefones","Faxineiro"]
[null,":15",null,"Balcão","Supervisor","Guia","Almoço","Férias","Telefones","Faxineiro"]
[null,":30",null,null,"Supervisor","Guia","Almoço","Férias","Telefones","Faxineiro"]
[null,":45",null,null,"Supervisor","Guia","Almoço","Férias","Almoço","Faxineiro"]
[null,"20:00",null,"Caixa","Almoço","Guia","Almoço","Férias","Almoço","Faxineiro"]
[null,":15",null,"Caixa","Almoço","Guia","Atendimento ao Cliente","Férias","Telefones","Faxineiro"]
[null,":30",null,"Caixa","Almoço","Almoço","Atendimento ao Cliente","Férias","Telefones","Almoço"]
[null,":45",null,"Caixa","Almoço","Almoço","Atendimento ao Cliente","Férias","Telefones","Almoço"]
[null,"21:00",null,"Caixa","Segurança","Almoço","Atendimento ao Cliente","Férias","Telefones","Almoço"]
[null,":15",null,"Caixa","Segurança","Almoço","Atendimento ao Cliente","Férias","Telefones","Almoço"]
[null,":30",null,"Caixa","Segurança","Guia","Atendimento ao Cliente","Férias","Telefones","Fechamento"]
[null,":45",null,"Caixa","Segurança","Guia","Atendimento ao Cliente","Férias","Telefones","Fechamento"]
[null,"22:00",null,"Caixa","Segurança","Guia","Atendimento ao Cliente","Férias","Intervalo","Fechamento"]
[null,":15",null,"Intervalo","Segurança","Guia","Intervalo","Férias","Telefones","Fechamento"]
[null,":30",null,"Caixa","Segurança","Guia","Atendimento ao Cliente","Férias","Telefones","Fechamento"]
[null,":45",null,"Caixa","Segurança","Guia","Atendimento ao Cliente","Férias","Telefones","Fechamento"]
[null,"23:00",null,"Caixa","Segurança","Guia","Atendimento ao Cliente",null,"Telefones","Fechamento"]
[null,":15",null,"Caixa","Segurança","Guia","Atendimento ao Cliente",null,"Telefones","Fechamento"]
[null,":30",null,"Caixa","Segurança","Guia","Atendimento ao Cliente",null,"Telefones","Fechamento"]
[null,":45",null,"Caixa","Segurança","Guia","Atendimento ao Cliente",null,"Telefones","Fechamento"]
[null,"0:00",null,"Caixa","Segurança","Guia","Atendimento ao Cliente",null,"Telefones","Fechamento"]
[null,":15",null,"Caixa","Segurança","Guia","Atendimento ao Cliente",null,"Telefones","Fechamento"]
[null,":30",null,null,"Segurança","Guia","Atendimento ao Cliente",null,"Telefones","Fechamento"]
[null,":45",null,null,"Segurança","Intervalo","Atendimento ao Cliente",null,"Telefones","Intervalo"]
[null,"1:00",{"$nulls":3},"Guia",null,null,"Telefones","Fechamento"]
[null,":15",{"$nulls":3},"Guia",null,null,"Telefones","Fechamento"]
[null,":30",{"$nulls":3},"Guia",{"$nulls":3},"Fechamento"]
[null,":45",{"$nulls":3},"Guia",{"$nulls":3},"Fechamento"]
[null,"2:00",{"$nulls":3},"Guia",{"$nulls":3},"Fechamento"]
[null,":15",{"$nulls":3},"Guia"]
[null,":30",{"$nulls":3},"Guia"]
[null,":45"]
[null,"3:00"]
[]
[]
[]
[]
["Horário dos Funcionários"]
[]
[null,"TOTAL:",null,{"$f":"SUM(184:184)","v":{"v":56,"d":"56.00"}}]
[null,"HORAS:",null,{"$f":"EmployeeDayHoursTotal","v":8},8,8,8,8,8,8,{"v":0,"d":"0.00"},{"v":0,"d":"0.00"},{"v":0,"d":"0.00"},{"v":0,"d":"0.00"},{"v":0,"d":"0.00"},{"v":0,"d":"0.00"},{"v":0,"d":"0.00"},{"v":0,"d":"0.00"},{"v":0,"d":"0.00"},{"v":0,"d":"0.00"},{"v":0,"d":"0.00"}]
[null,"FUNCIONÁRIO:",null,"Andrade, D","Freitas, V","Raposo, R","Lacerda, C","Cunha, G","Mena, J","Neves, P"]
[]
[null,{"$f":"B127+1","v":"2012-07-19T09:00:00"}]
[null,{"$f":"B187","v":41109.375},{"$nulls":5},"Férias"]
[null,{"$f":"PeríodosDisplay","v":":15"},null,"Balcão",{"$nulls":3},"Férias"]
[null,":30",null,"Balcão",{"$nulls":3},"Férias"]
[null,":45",null,"Balcão","Supervisor",null,"Atendimento ao Cliente","Férias"]
[null,"7:00",null,"Balcão","Supervisor",null,"Atendimento ao Cliente","Férias"]
[null,":15",null,"Balcão","Supervisor",null,"Atendimento ao Cliente","Férias"]
[null,":30",null,"Balcão","Supervisor",null,"Atendimento ao Cliente","Férias","Contabilidade"]
[null,":45",null,"Balcão","Supervisor",null,"Atendimento ao Cliente","Férias","Contabilidade","Faxineiro"]
[null,"8:00",null,"Balcão","Supervisor",null,"Atendimento ao Cliente","Férias","Contabilidade","Faxineiro"]
[null,":15",null,"Balcão","Supervisor","Guia","Atendimento ao Cliente","Férias","Contabilidade","Faxineiro"]
[null,":30",null,"Balcão","Intervalo","Guia","Atendimento ao Cliente","Férias","Contabilidade","Faxineiro"]
[null,":45",null,"Almoço","Supervisor","Guia","Atendimento ao Cliente","Férias","Contabilidade","Faxineiro"]
[null,"9:00",null,"Almoço","Supervisor","Guia","Atendimento ao Cliente","Férias","Contabilidade","Faxineiro"]
[null,":15",null,"Balcão","Supervisor","Guia","Atendimento ao Cliente","Férias","Intervalo","Faxineiro"]
[null,":30",null,"Balcão","Supervisor","Intervalo","Atendimento ao Cliente","Férias","Telefones","Intervalo"]
[null,":45",null,"Balcão","Supervisor","Guia","Atendimento ao Cliente","Férias","Telefones","Faxineiro"]
[null,"10:00",null,"Balcão","Supervisor","Guia","Atendimento ao Cliente","Férias","Telefones","Faxineiro"]
[null,":15",null,"Balcão","Supervisor","Guia","Almoço","Férias","Telefones","Faxineiro"]
[null,":30",null,null,"Supervisor","Guia","Almoço","Férias","Telefones","Faxineiro"]
[null,":45",null,null,"Supervisor","Guia","Almoço","Férias","Almoço","Faxineiro"]
[null,"11:00",null,"Caixa","Almoço","Guia","Almoço","Férias","Almoço","Faxineiro"]
[null,":15",null,"Caixa","Almoço","Guia","Atendimento ao Cliente","Férias","Telefones","Faxineiro"]
[null,":30",null,"Caixa","Almoço","Almoço","Atendimento ao Cliente","Férias","Telefones","Almoço"]
[null,":45",null,"Caixa","Almoço","Almoço","Atendimento ao Cliente","Férias","Telefones","Almoço"]
[null,"12:00",null,"Caixa","Segurança","Almoço","Atendimento ao Cliente","Férias","Telefones","Almoço"]
[null,":15",null,"Caixa","Segurança","Almoço","Atendimento ao Cliente","Férias","Telefones","Almoço"]
[null,":30",null,"Caixa","Segurança","Guia","Atendimento ao Cliente","Férias","Telefones","Fechamento"]
[null,":45",null,"Caixa","Segurança","Guia","Atendimento ao Cliente","Férias","Telefones","Fechamento"]
[null,"13:00",null,"Caixa","Segurança","Guia","Atendimento ao Cliente","Férias","Intervalo","Fechamento"]
[null,":15",null,"Intervalo","Segurança","Guia","Intervalo","Férias","Telefones","Fechamento"]
[null,":30",null,"Caixa","Segurança","Guia","Atendimento ao Cliente","Férias","Telefones","Fechamento"]
[null,":45",null,"Caixa","Segurança","Guia","Atendimento ao Cliente","Férias","Telefones","Fechamento"]
[null,"14:00",null,"Caixa","Segurança","Guia","Atendimento ao Cliente",null,"Telefones","Fechamento"]
[null,":15",null,"Caixa","Segurança","Guia","Atendimento ao Cliente",null,"Telefones","Fechamento"]
[null,":30",null,"Caixa","Segurança","Guia","Atendimento ao Cliente",null,"Telefones","Fechamento"]
[null,":45",null,"Caixa","Segurança","Guia","Atendimento ao Cliente",null,"Telefones","Fechamento"]
[null,"15:00",null,"Caixa","Segurança","Guia","Atendimento ao Cliente",null,"Telefones","Fechamento"]
[null,":15",null,"Caixa","Segurança","Guia","Atendimento ao Cliente",null,"Telefones","Fechamento"]
[null,":30",null,null,"Segurança","Guia","Atendimento ao Cliente",null,"Telefones","Fechamento"]
[null,":45",null,null,"Segurança","Intervalo","Atendimento ao Cliente",null,"Telefones","Intervalo"]
[null,"16:00",{"$nulls":3},"Guia",null,null,"Telefones","Fechamento"]
[null,":15",{"$nulls":3},"Guia",null,null,"Telefones","Fechamento"]
[null,":30",{"$nulls":3},"Guia",{"$nulls":3},"Fechamento"]
[null,":45",{"$nulls":3},"Guia",{"$nulls":3},"Fechamento"]
[null,"17:00",{"$nulls":3},"Guia",{"$nulls":3},"Fechamento"]
[null,":15",{"$nulls":3},"Guia"]
[null,":30",{"$nulls":3},"Guia"]
[null,":45"]
[null,"18:00"]
[]
[]
[]
[]
["Horário dos Funcionários"]
[]
[null,"TOTAL:",null,{"$f":"SUM(244:244)","v":{"v":56,"d":"56.00"}}]
[null,"HORAS:",null,{"$f":"EmployeeDayHoursTotal","v":8},8,8,8,8,8,8,{"v":0,"d":"0.00"},{"v":0,"d":"0.00"},{"v":0,"d":"0.00"},{"v":0,"d":"0.00"},{"v":0,"d":"0.00"},{"v":0,"d":"0.00"},{"v":0,"d":"0.00"},{"v":0,"d":"0.00"},{"v":0,"d":"0.00"},{"v":0,"d":"0.00"},{"v":0,"d":"0.00"}]
[null,"FUNCIONÁRIO:",null,"Andrade, D","Freitas, V","Raposo, R","Lacerda, C","Cunha, G","Mena, J","Neves, P"]
[]
[null,{"$f":"B187+1","v":"2012-07-20T09:00:00"}]
[null,{"$f":"B247","v":41110.375},{"$nulls":5},"Férias"]
[null,{"$f":"PeríodosDisplay","v":":15"},null,"Balcão",{"$nulls":3},"Férias"]
[null,":30",null,"Balcão",{"$nulls":3},"Férias"]
[null,":45",null,"Balcão","Supervisor",null,"Atendimento ao Cliente","Férias"]
[null,"22:00",null,"Balcão","Supervisor",null,"Atendimento ao Cliente","Férias"]
[null,":15",null,"Balcão","Supervisor",null,"Atendimento ao Cliente","Férias"]
[null,":30",null,"Balcão","Supervisor",null,"Atendimento ao Cliente","Férias","Contabilidade"]
[null,":45",null,"Balcão","Supervisor",null,"Atendimento ao Cliente","Férias","Contabilidade","Faxineiro"]
[null,"23:00",null,"Balcão","Supervisor",null,"Atendimento ao Cliente","Férias","Contabilidade","Faxineiro"]
[null,":15",null,"Balcão","Supervisor","Guia","Atendimento ao Cliente","Férias","Contabilidade","Faxineiro"]
[null,":30",null,"Balcão","Intervalo","Guia","Atendimento ao Cliente","Férias","Contabilidade","Faxineiro"]
[null,":45",null,"Almoço","Supervisor","Guia","Atendimento ao Cliente","Férias","Contabilidade","Faxineiro"]
[null,"0:00",null,"Almoço","Supervisor","Guia","Atendimento ao Cliente","Férias","Contabilidade","Faxineiro"]
[null,":15",null,"Balcão","Supervisor","Guia","Atendimento ao Cliente","Férias","Intervalo","Faxineiro"]
[null,":30",null,"Balcão","Supervisor","Intervalo","Atendimento ao Cliente","Férias","Telefones","Intervalo"]
[null,":45",null,"Balcão","Supervisor","Guia","Atendimento ao Cliente","Férias","Telefones","Faxineiro"]
[null,"1:00",null,"Balcão","Supervisor","Guia","Atendimento ao Cliente","Férias","Telefones","Faxineiro"]
[null,":15",null,"Balcão","Supervisor","Guia","Almoço","Férias","Telefones","Faxineiro"]
[null,":30",null,null,"Supervisor","Guia","Almoço","Férias","Telefones","Faxineiro"]
[null,":45",null,null,"Supervisor","Guia","Almoço","Férias","Almoço","Faxineiro"]
[null,"2:00",null,"Caixa","Almoço","Guia","Almoço","Férias","Almoço","Faxineiro"]
[null,":15",null,"Caixa","Almoço","Guia","Atendimento ao Cliente","Férias","Telefones","Faxineiro"]
[null,":30",null,"Caixa","Almoço","Almoço","Atendimento ao Cliente","Férias","Telefones","Almoço"]
[null,":45",null,"Caixa","Almoço","Almoço","Atendimento ao Cliente","Férias","Telefones","Almoço"]
[null,"3:00",null,"Caixa","Segurança","Almoço","Atendimento ao Cliente","Férias","Telefones","Almoço"]
[null,":15",null,"Caixa","Segurança","Almoço","Atendimento ao Cliente","Férias","Telefones","Almoço"]
[null,":30",null,"Caixa","Segurança","Guia","Atendimento ao Cliente","Férias","Telefones","Fechamento"]
[null,":45",null,"Caixa","Segurança","Guia","Atendimento ao Cliente","Férias","Telefones","Fechamento"]
[null,"4:00",null,"Caixa","Segurança","Guia","Atendimento ao Cliente","Férias","Intervalo","Fechamento"]
[null,":15",null,"Intervalo","Segurança","Guia","Intervalo","Férias","Telefones","Fechamento"]
[null,":30",null,"Caixa","Segurança","Guia","Atendimento ao Cliente","Férias","Telefones","Fechamento"]
[null,":45",null,"Caixa","Segurança","Guia","Atendimento ao Cliente","Férias","Telefones","Fechamento"]
[null,"5:00",null,"Caixa","Segurança","Guia","Atendimento ao Cliente",null,"Telefones","Fechamento"]
[null,":15",null,"Caixa","Segurança","Guia","Atendimento ao Cliente",null,"Telefones","Fechamento"]
[null,":30",null,"Caixa","Segurança","Guia","Atendimento ao Cliente",null,"Telefones","Fechamento"]
[null,":45",null,"Caixa","Segurança","Guia","Atendimento ao Cliente",null,"Telefones","Fechamento"]
[null,"6:00",null,"Caixa","Segurança","Guia","Atendimento ao Cliente",null,"Telefones","Fechamento"]
[null,":15",null,"Caixa","Segurança","Guia","Atendimento ao Cliente",null,"Telefones","Fechamento"]
[null,":30",null,null,"Segurança","Guia","Atendimento ao Cliente",null,"Telefones","Fechamento"]
[null,":45",null,null,"Segurança","Intervalo","Atendimento ao Cliente",null,"Telefones","Intervalo"]
[null,"7:00",{"$nulls":3},"Guia",null,null,"Telefones","Fechamento"]
[null,":15",{"$nulls":3},"Guia",null,null,"Telefones","Fechamento"]
[null,":30",{"$nulls":3},"Guia",{"$nulls":3},"Fechamento"]
[null,":45",{"$nulls":3},"Guia",{"$nulls":3},"Fechamento"]
[null,"8:00",{"$nulls":3},"Guia",{"$nulls":3},"Fechamento"]
[null,":15",{"$nulls":3},"Guia"]
[null,":30",{"$nulls":3},"Guia"]
[null,":45"]
[null,"9:00"]

{"sheet":"Configuração","index":1,"n_rows":26,"n_cols":7,"rows_kept":26}
[null,"Configuração"]
[]
[]
[null,"INCREMENTOS POR\nENTRADA DE HORA",4]
[]
[]
[]
[]
[]
[null,"Funcionários",null,"Cargo/Tempo de Folga","Cor","Pago","Dia Inteiro"]
[null,"Andrade, D",null,"Almoço",1,false,false]
[null,"Cunha, G",null,"Intervalo",1,false,false]
[null,"Mena, J",null,"Folga",1,false,true]
[null,"Oliveira, M",null,"Licença",1,false,true]
[null,"Freitas, V",null,"Dia Pessoal",1,true,true]
[null,"Lacerda, C",null,"Férias",1,true,true]
[null,"Neves, P",null,"Balcão",2,true,false]
[null,"Raposo, R",null,"Caixa",3,true,false]
[{"$nulls":3},"Supervisor",4,true,false]
[{"$nulls":3},"Guia",5,true,false]
[{"$nulls":3},"Atendimento ao Cliente",6,true,false]
[{"$nulls":3},"Telefones",7,true,false]
[{"$nulls":3},"Segurança",8,true,false]
[{"$nulls":3},"Faxineiro",9,true,false]
[{"$nulls":3},"Contabilidade",10,true,false]
[{"$nulls":3},"Fechamento",11,true,false]